Workbook

Sheet Лист с формой

Sheet Таблица 1 (hidden)
A1: Индикаторы риска причинения вреда (ущерба) | B1: Показатель (критерий оценки) | C1: Объекты образования и объекты, на которых осуществляется деятельность детских лагерей | D1: Объекты здравоохранения | E1: Объекты социальной защиты | F1: Объекты религиозного назначения | G1: Объекты культурно-досугового назначения | H1: Объекты временного размещения людей, туризма и отдыха | I1: Объекты торговли | J1: Объекты общественного питания | K1: Объекты бытового обслуживания и предоставления услуг населению | L1: Объекты транспортной инфраструктуры | M1: Объекты административного назначения | N1: Объекты жилого назначения (многоквартирные жилые дома)
A2: 1. Степень огнестойкости | B2: I, II | C2: 0 | D2: 0 | E2: 0 | F2: 0 | G2: 0 | H2: 0 | I2: 0 | J2: 0 | K2: 0 | L2: 0 | M2: 0 | N2: 0
B3: III | C3: 1 | D3: 3 | E3: 1 | F3: 1 | G3: 1 | H3: 1 | I3: 1 | J3: 1 | K3: 1 | L3: 1 | M3: 1 | N3: 1
B4: IV,V | C4: 3 | D4: 5 | E4: 3 | F4: 3 | G4: 3 | H4: 3 | I4: 3 | J4: 3 | K4: 3 | L4: 3 | M4: 3 | N4: 3
A5: 2. Высота здания, сооружения | B5: до 28 м | C5: 0 | D5: 0 | E5: 0 | F5: 0 | G5: 0 | H5: 0 | I5: 0 | J5: 0 | K5: 0 | L5: 0 | M5: 0 | N5: 0
B6: от 28 м до 50 м (до 75 м для жилых зданий) | C6: 2 | D6: 2 | E6: 2 | F6: 2 | G6: 2 | H6: 2 | I6: 2 | J6: 2 | K6: 2 | L6: 2 | M6: 2 | N6: 2
B7: свыше 50 м (свыше 75 м для жилых зданий) | C7: 4 | D7: 4 | E7: 4 | F7: 4 | G7: 4 | H7: 4 | I7: 4 | J7: 4 | K7: 4 | L7: 4 | M7: 4 | N7: 4
A8: 3. Наличие открытых лестниц и (или) многосветных пространств | B8: Да | C8: 4 | D8: 4 | E8: 4 | F8: 4 | G8: 4 | H8: 4 | I8: 4 | J8: 4 | K8: 4 | L8: 4 | M8: 4 | N8: 4
B9: Нет | C9: 0 | D9: 0 | E9: 0 | F9: 0 | G9: 0 | H9: 0 | I9: 0 | J9: 0 | K9: 0 | L9: 0 | M9: 0 | N9: 0
A10: 4. Количество людей | B10: До 50 | C10: 0 | D10: 0 | E10: 0 | F10: 0 | G10: 0 | H10: 0 | I10: 0 | J10: 0 | K10: 0 | L10: 0 | M10: 0 | N10: 0
B11: 50-200 | C11: 4 | D11: 3 | E11: 3 | F11: 3 | G11: 4 | H11: 3 | I11: 3 | J11: 3 | K11: 3 | L11: 3 | M11: 3 | N11: 3
B12: 200-700 | C12: 6 | D12: 5 | E12: 5 | F12: 5 | G12: 6 | H12: 5 | I12: 5 | J12: 5 | K12: 5 | L12: 5 | M12: 5 | N12: 5
B13: 700-1000 | C13: 8 | D13: 7 | E13: 7 | F13: 7 | G13: 8 | H13: 7 | I13: 8 | J13: 7 | K13: 7 | L13: 7 | M13: 7 | N13: 7
B14: 1000-5000 | C14: 10 | D14: 8 | E14: 8 | F14: 8 | G14: 12 | H14: 8 | I14: 12 | J14: 8 | K14: 8 | L14: 8 | M14: 8 | N14: 8
B15: Свыше 5000 | C15: 12 | D15: 10 | E15: 10 | F15: 10 | G15: 15 | H15: 10 | I15: 15 | J15: 10 | K15: 10 | L15: 10 | M15: 10 | N15: 10
A16: 5. Наличие круглосуточного пребывания или проживания маломобильных групп населения, детей дошкольного и школьного возраста, пожилых людей старше 65 лет | B16: Да | C16: 40 | D16: 40 | E16: 40 | F16: 40 | G16: 0 | H16: 10 | I16: 0 | J16: 0 | K16: 0 | L16: 0 | M16: 0 | N16: 0
B17: Нет | C17: 0 | D17: 0 | E17: 0 | F17: 0 | G17: 0 | H17: 0 | I17: 0 | J17: 0 | K17: 0 | L17: 0 | M17: 0 | N17: 0
A18: 6.Нахождение в рабочее время на объекте более 10 человек, отнесенных к категории маломобильных групп населения, детей дошкольного и школьного возраста, а также пожилых людей старше 65 лет | B18: Да | C18: 20 | D18: 20 | E18: 20 | F18: 20 | G18: 20 | H18: 0 | I18: 0 | J18: 0 | K18: 0 | L18: 0 | M18: 0 | N18: 0
B19: Нет | C19: 0 | D19: 0 | E19: 0 | F19: 0 | G19: 0 | H19: 0 | I19: 0 | J19: 0 | K19: 0 | L19: 0 | M19: 0 | N19: 0
A20: 7. Системы противопожарной защиты (автоматические установки пожаротушения и пожарной сигнализации, система оповещения людей о пожаре и управления эвакуацией людей, система противодымной вентиляции) смонтированы более 10 лет назад и не подвергались капитальному ремонту | B20: Да | C20: 10 | D20: 10 | E20: 10 | F20: 10 | G20: 10 | H20: 10 | I20: 10 | J20: 10 | K20: 10 | L20: 10 | M20: 10 | N20: 10
B21: Нет или сведения отсутствуют | C21: 0 | D21: 0 | E21: 0 | F21: 0 | G21: 0 | H21: 0 | I21: 0 | J21: 0 | K21: 0 | L21: 0 | M21: 0 | N21: 0
A22: 8. Наличие на объекте пожарной охраны, обеспеченной пожарно-техническим вооружением | B22: Да | C22: -15 | D22: -15 | E22: -15 | F22: -15 | G22: -15 | H22: -15 | I22: -15 | J22: -15 | K22: -15 | L22: -15 | M22: -15 | N22: -15
B23: Нет | C23: 0 | D23: 0 | E23: 0 | F23: 0 | G23: 0 | H23: 0 | I23: 0 | J23: 0 | K23: 0 | L23: 0 | M23: 0 | N23: 0
A24: 9. Привлечение к охране организации, специально учрежденной для оказания охранных услуг, зарегистрированной в установленном законом порядке и имеющей лицензию на осуществление частной охранной деятельности | B24: Нет | C24: 0 | D24: 0 | E24: 0 | F24: 0 | G24: 0 | H24: 0 | I24: 0 | J24: 0 | K24: 0 | L24: 0 | M24: 0 | N24: 0
B25: Не круглосуточно | C25: -3 | D25: -3 | E25: -3 | F25: -3 | G25: -3 | H25: -3 | I25: -3 | J25: -3 | K25: -3 | L25: -3 | M25: -3 | N25: -5
B26: Круглосуточно | C26: -5 | D26: -5 | E26: -5 | F26: -5 | G26: -5 | H26: -5 | I26: -5 | J26: -5 | K26: -5 | L26: -5 | M26: -5 | N26: -10
A27: 10. Электропроводка выполнена более 10 лет назад и не подвергалась капитальному ремонту | B27: Да | C27: 5 | D27: 5 | E27: 5 | F27: 5 | G27: 5 | H27: 5 | I27: 5 | J27: 5 | K27: 5 | L27: 5 | M27: 5 | N27: 5
B28: Нет или сведения отсутствуют | C28: 0 | D28: 0 | E28: 0 | F28: 0 | G28: 0 | H28: 0 | I28: 0 | J28: 0 | K28: 0 | L28: 0 | M28: 0 | N28: 0
A29: 11. Вид электропроводки (за исключением зданий и сооружений V степени огнестойкости) | B29: открытая | C29: 2 | D29: 2 | E29: 2 | F29: 2 | G29: 2 | H29: 2 | I29: 2 | J29: 2 | K29: 2 | L29: 2 | M29: 2 | N29: 2
B30: скрытая | C30: 0 | D30: 0 | E30: 0 | F30: 0 | G30: 0 | H30: 0 | I30: 0 | J30: 0 | K30: 0 | L30: 0 | M30: 0 | N30: 0
A31: 12. Наличие электрического отопления (за исключением электрических котлов с контуром отопления) | B31: Да | C31: 5 | D31: 5 | E31: 5 | F31: 5 | G31: 5 | H31: 5 | I31: 5 | J31: 5 | K31: 5 | L31: 5 | M31: 5 | N31: 5
B32: Нет | C32: 0 | D32: 0 | E32: 0 | F32: 0 | G32: 0 | H32: 0 | I32: 0 | J32: 0 | K32: 0 | L32: 0 | M32: 0 | N32: 0
A33: 13. Наличие печного отопления | B33: Да | C33: 10 | D33: 10 | E33: 10 | F33: 10 | G33: 10 | H33: 10 | I33: 10 | J33: 10 | K33: 10 | L33: 10 | M33: 10 | N33: 10
B34: Нет | C34: 0 | D34: 0 | E34: 0 | F34: 0 | G34: 0 | H34: 0 | I34: 0 | J34: 0 | K34: 0 | L34: 0 | M34: 0 | N34: 0

Sheet Таблица 2 (hidden)
A1: Индикаторы риска причинения вреда (ущерба) | B1: Показатель (критерий оценки) | C1: Объекты производственного назначения | D1: Объекты складского назначения | E1: Объекты сельскохозяйственного назначения | F1: Наружные установки
A2: 1. Степень огнестойкости | B2: I, II | C2: 0 | D2: 0 | E2: 0 | F2: -
B3: III | C3: 1 | D3: 1 | E3: 1 | F3: -
B4: IV,V | C4: 4 | D4: 3 | E4: 3 | F4: -
A5: 2. Наличие людей в селитебной зоне | B5: Да | C5: 4 | D5: 4 | E5: - | F5: 5
B6: Нет | C6: 0 | D6: 0 | E6: - | F6: 0
A7: 3. Высота здания, сооружения (наружной установки) | B7: до 28м | C7: 0 | D7: 0 | E7: 0 | F7: 0
B8: от 28 м до 50 м | C8: 2 | D8: 2 | E8: 2 | F8: 2
B9: свыше 50 м | C9: 4 | D9: 4 | E9: 4 | F9: 4
A10: 4. Наличие открытых лестниц и (или) многосветных пространств | B10: Да | C10: 4 | D10: 4 | E10: 4 | F10: -
B11: Нет | C11: 0 | D11: 0 | E11: 0 | F11: -
A12: 5. Наличие постоянных рабочих мест | B12: Да | C12: 3 | D12: 4 | E12: 4 | F12: 4
B13: Нет | C13: 0 | D13: 0 | E13: 0 | F13: 0
A14: 6. Наличие маломобильных групп населения, пожилых людей старше 65 лет на территории | B14: Да | C14: 10 | D14: 20 | E14: 20 | F14: 10
B15: Нет | C15: 0 | D15: 0 | E15: 0 | F15: 0
A16: 7. Системы противопожарной защиты (автоматические установки пожаротушения и пожарной сигнализации, система оповещения людей о пожаре и управления эвакуацией людей, система противодымной вентиляции) смонтированы более 10 лет назад и не подвергались капитальному ремонту | B16: Да | C16: 10 | D16: 10 | E16: 10 | F16: 10
B17: Нет или сведения отсутствуют | C17: 0 | D17: 0 | E17: 0 | F17: 0
A18: 8. Наличие на объекте пожарной охраны, обеспеченной пожарно-техническим вооружением | B18: Да | C18: -15 | D18: -15 | E18: -15 | F18: -15
B19: Нет | C19: 0 | D19: 0 | E19: 0 | F19: 0
A20: 9. Привлечение к охране организации, специально учрежденной для оказания охранных услуг, зарегистрированной в установленном законом порядке и имеющей лицензию на осуществление частной охранной деятельности | B20: Нет | C20: 0 | D20: 0 | E20: 0 | F20: 0
B21: Не круглосуточно | C21: -3 | D21: -3 | E21: -3 | F21: -3
B22: Круглосуточно | C22: -5 | D22: -5 | E22: -5 | F22: -5
A23: 10. Категория здания, сооружения (наружной установки), если категорируется | B23: А, АН - для наружной установки | C23: 8 | D23: 8 | E23: 8 | F23: 8
B24: Б, БН - для наружной установки | C24: 8 | D24: 8 | E24: 8 | F24: 8
B25: В с долей помещений В1-В2 более 50% | C25: 10 | D25: 10 | E25: 10 | F25: 6
B26: В с долей помещений В1-В2 менее 50%, ВН - для наружной установки | C26: 4 | D26: 4 | E26: 4 | F26: 6
B27: Г, ГН -для наружной установки | C27: 2 | D27: 2 | E27: 2 | F27: 3
B28: Д, ДН - для наружной установки | C28: 0 | D28: 0 | E28: 0 | F28: 0
A31: 11. Электропроводка выполнена более 10 лет назад и не подвергалась капитальному ремонту | B31: Да | C31: 5 | D31: 5 | E31: 5 | F31: -
B32: Нет или сведения отсутствуют | C32: 0 | D32: 0 | E32: 0 | F32: -
A33: 12. Вид электропроводки (за исключением зданий и сооружений V степени огнестойкости) | B33: открытая | C33: 2 | D33: 2 | E33: 2 | F33: -
B34: скрытая | C34: 0 | D34: 0 | E34: 0 | F34: -
A35: 13. Электрическое отопление (за исключением электрических котлов с контуром отопления) | B35: Да | C35: 5 | D35: 5 | E35: 5 | F35: -
B36: нет | C36: 0 | D36: 0 | E36: 0 | F36: -
A37: 14. Наличие печного отопления | B37: Да | C37: 10 | D37: 10 | E37: 10 | F37: -
B38: Нет | C38: 0 | D38: 0 | E38: 0 | F38: -
A39: 15. Категория объекта по потенциальной радиационной опасности | B39: I | C39: 10 | D39: 10 | E39: - | F39: -
B40: II | C40: 7 | D40: 7 | E40: - | F40: -
B41: III | C41: 4 | D41: 2 | E41: - | F41: -
B42: IV | C42: 2 | D42: 1 | E42: - | F42: -
B43: Не категорируется | C43: 0 | D43: 0 | E43: - | F43: -

Sheet Таблица 3 (hidden)
A1: Критерии добросовестности | B1: Показатель (критерий оценки) | C1: Объекты образования и объекты, на которых осуществляется деятельность детских лагерей | D1: Объекты здравоохранения | E1: Объекты социальной защиты | F1: Объекты религиозного назначения | G1: Объекты культурно-досугового назначения | H1: Объекты временного размещения людей, туризма и отдыха | I1: Объекты торговли | J1: Объекты общественного питания | K1: Объекты бытового обслуживания и предоставления услуг населению | L1: Объекты транспортной инфраструктуры | M1: Объекты административного назначения | N1: Объекты жилого назначения (многоквартирные жилые дома)
A2: 1. Наличие в отношении объекта действующего предписания органа государственного пожарного надзора, содержащего сведения об неустраненных нарушениях установленных требований, предъявляемых к путям эвакуации, зонам безопасности для маломобильных групп населения, автоматическим системам противопожарной защиты (автоматические установки пожаротушения и пожарной сигнализации, система оповещения людей о пожаре и управления эвакуацией людей, система противодымной ветиляции) | B2: Да | C2: 8 | D2: 8 | E2: 8 | F2: 8 | G2: 8 | H2: 8 | I2: 8 | J2: 8 | K2: 8 | L2: 8 | M2: 8 | N2: 8
B3: Нет | C3: 0 | D3: 0 | E3: 0 | F3: 0 | G3: 0 | H3: 0 | I3: 0 | J3: 0 | K3: 0 | L3: 0 | M3: 0 | N3: 0
A4: 2. Наличие в отношении объекта действующего предписания органа государственного пожарного надзора, содержащего сведения об неустраненных нарушениях установленных требований, предъявляемых к обеспечению деятельности пожарных подразделений | B4: Да | C4: 6 | D4: 6 | E4: 6 | F4: 6 | G4: 6 | H4: 6 | I4: 6 | J4: 6 | K4: 6 | L4: 6 | M4: 6 | N4: 6
B5: Нет | C5: 0 | D5: 0 | E5: 0 | F5: 0 | G5: 0 | H5: 0 | I5: 0 | J5: 0 | K5: 0 | L5: 0 | M5: 0 | N5: 0
A6: 3. Наличие в отношении объекта действующего предписания органа государственного пожарного надзора, содержащего сведения об неустраненных нарушениях установленных требований, не вошедшими в пункты 1, 2 | B6: Да | C6: 2 | D6: 2 | E6: 2 | F6: 2 | G6: 2 | H6: 2 | I6: 2 | J6: 2 | K6: 2 | L6: 2 | M6: 2 | N6: 2
B7: Нет | C7: 0 | D7: 0 | E7: 0 | F7: 0 | G7: 0 | H7: 0 | I7: 0 | J7: 0 | K7: 0 | L7: 0 | M7: 0 | N7: 0
A8: 4. Наличие в отношении объекта положительного заключения независимой оценки пожарного риска (аудита пожарной безопасности) | B8: Да | C8: -10 | D8: -10 | E8: -10 | F8: -10 | G8: -10 | H8: -10 | I8: -10 | J8: -10 | K8: -10 | L8: -10 | M8: -10 | N8: 0
B9: Нет | C9: 0 | D9: 0 | E9: 0 | F9: 0 | G9: 0 | H9: 0 | I9: 0 | J9: 0 | K9: 0 | L9: 0 | M9: 0 | N9: 0
A10: 5. Наличие на объекте учреждений, осуществляющих экономическую деятельность, не соответствующую функциональному назначению здания | B10: Да | C10: 3 | D10: 3 | E10: 3 | F10: 3 | G10: 3 | H10: 3 | I10: 3 | J10: 3 | K10: 3 | L10: 3 | M10: 3 | N10: 3
B11: Нет | C11: 0 | D11: 0 | E11: 0 | F11: 0 | G11: 0 | H11: 0 | I11: 0 | J11: 0 | K11: 0 | L11: 0 | M11: 0 | N11: 0
A12: 6. Наличие сведений о проведении на объекте перепланировки, реконструкции, капитального ремонта или технического перевооружения | B12: Да | C12: 3 | D12: 3 | E12: 3 | F12: 3 | G12: 3 | H12: 3 | I12: 3 | J12: 3 | K12: 3 | L12: 3 | M12: 3 | N12: 3
B13: Нет | C13: 0 | D13: 0 | E13: 0 | F13: 0 | G13: 0 | H13: 0 | I13: 0 | J13: 0 | K13: 0 | L13: 0 | M13: 0 | N13: 0
A14: 7. Наличие доступа у органа государственного пожарного надзора к системам видеонаблюдения объекта для проведения регулярного дистанционного мониторинга соблюдения требований пожарной безопасности | B14: Да | C14: -4 | D14: -4 | E14: -4 | F14: -4 | G14: -4 | H14: -4 | I14: -4 | J14: -4 | K14: -4 | L14: -4 | M14: -4 | N14: -4
B15: Нет | C15: 0 | D15: 0 | E15: 0 | F15: 0 | G15: 0 | H15: 0 | I15: 0 | J15: 0 | K15: 0 | L15: 0 | M15: 0 | N15: 0
A16: 8. Наличие на объекте круглосуточного мониторинга работоспособности автоматических систем противопожарной защиты (автоматические установки пожаротушения и пожарной сигнализации, система оповещения людей о пожаре и управления эвакуацией людей, система противодымной вентиляции) дежурным персоналом | B16: Да | C16: -4 | D16: -4 | E16: -4 | F16: -4 | G16: -4 | H16: -4 | I16: -4 | J16: -4 | K16: -4 | L16: -4 | M16: -4 | N16: -4
B17: Нет | C17: 0 | D17: 0 | E17: 0 | F17: 0 | G17: 0 | H17: 0 | I17: 0 | J17: 0 | K17: 0 | L17: 0 | M17: 0 | N17: 0
A18: 9. Наличие зарегистрированных случаев пожаров за последние 5 лет (за исключением пожаров причиной которых является умышленное уничтожение или повреждения имущества) | B18: Да | C18: 20 | D18: 20 | E18: 20 | F18: 20 | G18: 20 | H18: 20 | I18: 20 | J18: 20 | K18: 20 | L18: 20 | M18: 20 | N18: 20
B19: Нет | C19: 0 | D19: 0 | E19: 0 | F19: 0 | G19: 0 | H19: 0 | I19: 0 | J19: 0 | K19: 0 | L19: 0 | M19: 0 | N19: 0
A20: 10. Наличие вступившего в законную силу постановления суда о назначении наказания в виде административного приостановления деятельности юридического лица и индивидуального предпринимателя за нарушения требований пожарной безопасности на объекте либо решения суда о приостановлении деятельности в соответствии с частью 2 статьи 1065 Гражданского кодекса Российской Федерации в течение последних 3 лет | B20: Да | C20: 30 | D20: 30 | E20: 30 | F20: 30 | G20: 30 | H20: 30 | I20: 30 | J20: 30 | K20: 30 | L20: 30 | M20: 30 | N20: 0
B21: Нет | C21: 0 | D21: 0 | E21: 0 | F21: 0 | G21: 0 | H21: 0 | I21: 0 | J21: 0 | K21: 0 | L21: 0 | M21: 0 | N21: 0
B22: Нет | C22: 0 | D22: 0 | E22: 0 | F22: 0 | G22: 0 | H22: 0 | I22: 0 | J22: 0 | K22: 0 | L22: 0 | M22: 0 | N22: 0
A23: 11. Наличие информации о вводе в эксплуатацию, либо фактическом функционировании объекта защиты, получившего отрицательное заключение при согласовании специальных технических условий, отражающих специфику обеспечения его пожарной безопасности и содержащих комплекс необходимых инженерно-технических и организационных мероприятий по обеспечению пожарной безопасности | B23: Да | C23: 20 | D23: 20 | E23: 20 | F23: 20 | G23: 20 | H23: 20 | I23: 20 | J23: 20 | K23: 20 | L23: 20 | M23: 20 | N23: 20
B24: Нет | C24: 0 | D24: 0 | E24: 0 | F24: 0 | G24: 0 | H24: 0 | I24: 0 | J24: 0 | K24: 0 | L24: 0 | M24: 0 | N24: 0
A25: 12. Непредставление в установленном порядке декларации пожарной безопасности в отношении объекта защиты, для которого законодательством Российской Федерации о градостроительной деятельности предусмотрено проведение экспертизы проектной документации | B25: Да | C25: 5 | D25: 5 | E25: 5 | F25: 5 | G25: 5 | H25: 5 | I25: 5 | J25: 5 | K25: 5 | L25: 5 | M25: 5 | N25: 0
B26: Нет | C26: 0 | D26: 0 | E26: 0 | F26: 0 | G26: 0 | H26: 0 | I26: 0 | J26: 0 | K26: 0 | L26: 0 | M26: 0 | N26: 0
A27: 13. Непредставление подконтрольным лицом ‎в срок, установленный в предостережении о недопустимости нарушения обязательных требований, уведомления о принятии мер на объекте по обеспечению соблюдения обязательных требований законодательства в области пожарной безопасности | B27: Да | C27: 10 | D27: 10 | E27: 10 | F27: 10 | G27: 10 | H27: 10 | I27: 10 | J27: 10 | K27: 10 | L27: 10 | M27: 10 | N27: 10
B28: Нет | C28: 0 | D28: 0 | E28: 0 | F28: 0 | G28: 0 | H28: 0 | I28: 0 | J28: 0 | K28: 0 | L28: 0 | M28: 0 | N28: 0
A29: 14. Наличие сведений о ненадлежащей работе при пожаре имеющихся автоматических систем противопожарной защиты | B29: Да | C29: 10 | D29: 10 | E29: 10 | F29: 10 | G29: 10 | H29: 10 | I29: 10 | J29: 10 | K29: 10 | L29: 10 | M29: 10 | N29: 10
B30: Нет | C30: 0 | D30: 0 | E30: 0 | F30: 0 | G30: 0 | H30: 0 | I30: 0 | J30: 0 | K30: 0 | L30: 0 | M30: 0 | N30: 0
A31: 15. Наличие сведений о приостановлении действия лицензии юридического лица, индивидуального предпринимателя на осуществление деятельности по техническому обслуживанию и ремонту средств обеспечения пожарной безопасности вследствие грубых нарушений лицензионных требований | B31: Да | C31: 10 | D31: 10 | E31: 10 | F31: 10 | G31: 10 | H31: 10 | I31: 10 | J31: 10 | K31: 10 | L31: 10 | M31: 10 | N31: 10
B32: Нет | C32: 0 | D32: 0 | E32: 0 | F32: 0 | G32: 0 | H32: 0 | I32: 0 | J32: 0 | K32: 0 | L32: 0 | M32: 0 | N32: 0

Sheet Таблица 4 (hidden)
A1: Критерии добросовестности | B1: Показатель (критерий оценки) | C1: Объекты производственного назначения | D1: Объекты складского назначения | E1: Объекты сельскохозяйственного назначения | F1: Наружные установки
A2: 1. Наличие в отношении объекта (наружной установки) действующего предписания органа государственного пожарного надзора, содержащего сведения об неустраненных нарушениях установленных требований, предъявляемых к путям эвакуации, зонам безопасности для маломобильных групп населения, автоматическим системам противопожарной защиты (автоматические установки пожаротушения и пожарной сигнализации, система оповещения людей о пожаре и управления эвакуацией людей, система противодымной ветиляции) | B2: Да | C2: 8 | D2: 8 | E2: 8 | F2: 9
B3: Нет | C3: 0 | D3: 0 | E3: 0 | F3: 0
A4: 2. Наличие в отношении объекта (наружной установки) действующего предписания органа государственного пожарного надзора, содержащего сведения об неустраненных нарушениях установленных требований, предъявляемых к обеспечению деятельности пожарных подразделений | B4: Да | C4: 6 | D4: 6 | E4: 6 | F4: 8
B5: Нет | C5: 0 | D5: 0 | E5: 0 | F5: 0
A6: 3. Наличие в отношении объекта (наружной установки) действующего предписания органа государственного пожарного надзора, содержащего сведения об неустраненных нарушениях установленных требований, не вошедшх в пункты 1, 2 настоящей таблицы | B6: Да | C6: 2 | D6: 2 | E6: 2 | F6: 2
B7: Нет | C7: 0 | D7: 0 | E7: 0 | F7: 0
A8: 4. Наличие в отношении объекта (наружной установки) положительного заключения независимой оценки пожарного риска (аудита пожарной безопасности) | B8: Да | C8: -10 | D8: -10 | E8: -10 | F8: -10
B9: Нет | C9: 0 | D9: 0 | E9: 0 | F9: 0
A10: 5.Наличие на объекте (на территории) учреждений, осуществляющих экономическую деятельность, не соответствующую функциональному назначению | B10: Да | C10: 3 | D10: 3 | E10: 3 | F10: 5
B11: Нет | C11: 0 | D11: 0 | E11: 0 | F11: 0
A12: 6. Наличие сведений о проведении на объекте (наружной установке) перепланировки, реконструкции, капитального ремонта или технического перевооружения (реконструкции технологических установок) | B12: Да | C12: 3 | D12: 3 | E12: 3 | F12: 3
B13: Нет | C13: 0 | D13: 0 | E13: 0 | F13: 0
A14: 7. Наличие доступа у органа государственного пожарного надзора к системам видеонаблюдения объекта (наружной установки) для проведения регулярного дистанционного мониторинга соблюдения требований пожарной безопасности | B14: Да | C14: -4 | D14: -4 | E14: -4 | F14: -4
B15: Нет | C15: 0 | D15: 0 | E15: 0 | F15: 0
A16: 8. Наличие круглосуточного мониторинга работоспособности автоматических систем противопожарной защиты (автоматические установки пожаротушения и пожарной сигнализации, система оповещения людей о пожаре и управления эвакуацией людей, система противодымной вентиляции) дежурным персоналом | B16: Да | C16: -4 | D16: -4 | E16: -4 | F16: -4
B17: Нет | C17: 0 | D17: 0 | E17: 0 | F17: 0
A18: 9. Наличие зарегистрированных случаев пожаров на объекте (наружной установке) за последние 5 лет (за исключением пожаров причиной которых является умышленное уничтожение или повреждения имущества) | B18: Да | C18: 20 | D18: 20 | E18: 20 | F18: 20
B19: Нет | C19: 0 | D19: 0 | E19: 0 | F19: 0
A20: 10. Наличие вступившего в законную силу постановления суда о назначении наказания в виде административного приостановления деятельности юридического лица и индивидуального предпринимателя за нарушения требований пожарной безопасности на объекте (наружной установке) либо решения суда о приостановлении деятельности в соответствии с частью 2 статьи 1065 Гражданского кодекса Российской Федерации в течение последних 3 лет | B20: Да | C20: 30 | D20: 30 | E20: 30 | F20: 30
B21: Нет | C21: 0 | D21: 0 | E21: 0 | F21: 0
A22: 11. Наличие информации о вводе в эксплуатацию, либо фактическом функционировании объекта (наружной установки), получивших отрицательное заключение при согласовании специальных технических условий, отражающих специфику обеспечения его пожарной безопасности и содержащих комплекс необходимых инженерно-технических и организационных мероприятий по обеспечению пожарной безопасности | B22: Да | C22: 20 | D22: 20 | E22: 20 | F22: 20
B23: Нет | C23: 0 | D23: 0 | E23: 0 | F23: 0
A24: 12. Непредставление в установленном порядке декларации пожарной безопасности в отношении объекта (наружной установки) для которых законодательством Российской Федерации о градостроительной деятельности предусмотрено проведение экспертизы проектной документации | B24: Да | C24: 5 | D24: 5 | E24: 5 | F24: 5
B25: Нет | C25: 0 | D25: 0 | E25: 0 | F25: 0
A26: 13. Непредставление подконтрольным лицом ‎в срок, установленный в предостережении о недопустимости нарушения обязательных требований, уведомления о принятии мер на объекте по обеспечению соблюдения обязательных требований законодательства в области пожарной безопасности на объекте (наружной установке) | B26: Да | C26: 10 | D26: 10 | E26: 10 | F26: 10
B27: Нет | C27: 0 | D27: 0 | E27: 0 | F27: 0
A28: 14. Наличие сведений о ненадлежащей работе при пожаре на объекте (наружной установке) имеющихся систем противопожарной защиты | B28: Да | C28: 10 | D28: 10 | E28: 10 | F28: 10
B29: Нет | C29: 0 | D29: 0 | E29: 0 | F29: 0
A30: 15. Наличие сведений о приостановлении действия лицензии юридического лица, индивидуального предпринимателя на осуществление деятельности по техническому обслуживанию и ремонту средств обеспечения пожарной безопасности вследствие грубых нарушений лицензионных требований на объекте (наружной установке) | B30: Да | C30: 10 | D30: 10 | E30: 10 | F30: 10
B31: Нет | C31: 0 | D31: 0 | E31: 0 | F31: 0

Sheet Определение Iрпв по табл.1 (hidden)
A1: Объекты культурно-досугового назначения
A3: Муниципальное бюджетное учреждение культуры "Социально-культурный центр Спасско-Лутовиновского сельского поселения"
A5: Расположен по адресу: Мценский район, д. Большая Каменка, ул. Молодёжная,1
A7: Определение индикаторов риска Iрпв
A8: Индикаторы риска причинения вреда (ущерба) | B8: Показатель (критерий оценки) | C8: Значение показателя Iрпв
A9: 1. Степень огнестойкости | B9: I, II | C9: =INDEX('Таблица 1'!A2:N4,MATCH(B9,'Таблица 1'!B2:B4,0),MATCH(A1,'Таблица 1'!A1:N1,0)) -> 0
A10: 2. Высота здания, сооружения | B10: до 28 м | C10: =INDEX('Таблица 1'!A5:N7,MATCH(B10,'Таблица 1'!B5:B7,0),MATCH(A1,'Таблица 1'!A1:N1,0)) -> 0
A11: 3. Наличие открытых лестниц и (или) многосветных пространств | B11: Да | C11: =INDEX('Таблица 1'!A8:N9,MATCH(B11,'Таблица 1'!B8:B9,0),MATCH(A1,'Таблица 1'!A1:N1,0)) -> 4
A12: 4. Количество людей | B12: 50-200 | C12: =INDEX('Таблица 1'!A10:N15,MATCH(B12,'Таблица 1'!B10:B15,0),MATCH(A1,'Таблица 1'!A1:N1,0)) -> 4
A13: 5. Наличие круглосуточного пребывания или проживания маломобильных групп населения, детей дошкольного и школьного возраста, пожилых людей старше 65 лет | B13: Нет | C13: =INDEX('Таблица 1'!A16:N17,MATCH(B13,'Таблица 1'!B16:B17,0),MATCH(A1,'Таблица 1'!A1:N1,0)) -> 0
A14: 6. Нахождение в рабочее время на объекте более 10 человек, отнесенных к категории маломобильных групп населения, детей дошкольного и школьного возраста, а также пожилых людей старше 65 лет | B14: Нет | C14: =INDEX('Таблица 1'!A18:N19,MATCH(B14,'Таблица 1'!B18:B19,0),MATCH(A1,'Таблица 1'!A1:N1,0)) -> 0
A15: 7. Системы противопожарной защиты (автоматические установки пожаротушения и пожарной сигнализации, система оповещения людей о пожаре и управления эвакуацией людей, система противодымной вентиляции) смонтированы более 10 лет назад и не подвергались капитальному ремонту | B15: Да | C15: =INDEX('Таблица 1'!A20:N21,MATCH(B15,'Таблица 1'!B20:B21,0),MATCH(A1,'Таблица 1'!A1:N1,0)) -> 10
A16: 8. Наличие на объекте пожарной охраны, обеспеченной пожарно-техническим вооружением | B16: Нет | C16: =INDEX('Таблица 1'!A22:N23,MATCH(B16,'Таблица 1'!B22:B23,0),MATCH(A1,'Таблица 1'!A1:N1,0)) -> 0
A17: 9. Привлечение к охране организации, специально учрежденной для оказания охранных услуг, зарегистрированной в установленном законом порядке и имеющей лицензию на осуществление частной охранной деятельности | B17: Не круглосуточно | C17: =INDEX('Таблица 1'!A24:N26,MATCH(B17,'Таблица 1'!B24:B26,0),MATCH(A1,'Таблица 1'!A1:N1,0)) -> -3
A18: 10. Электропроводка выполнена более 10 лет назад и не подвергалась капитальному ремонту | B18: Да | C18: =INDEX('Таблица 1'!A27:N28,MATCH(B18,'Таблица 1'!B27:B28,0),MATCH(A1,'Таблица 1'!A1:N1,0)) -> 5
A19: 11. Вид электропроводки (за исключением зданий и сооружений V степени огнестойкости) | B19: скрытая | C19: =INDEX('Таблица 1'!A29:N30,MATCH(B19,'Таблица 1'!B29:B30,0),MATCH(A1,'Таблица 1'!A1:N1,0)) -> 0
A20: 12. Наличие электрического отопления (за исключением электрических котлов с контуром отопления) | B20: Нет | C20: =INDEX('Таблица 1'!A31:N32,MATCH(B20,'Таблица 1'!B31:B32,0),MATCH(A1,'Таблица 1'!A1:N1,0)) -> 0
A21: 13. Наличие печного отопления | B21: Нет | C21: =INDEX('Таблица 1'!A33:N34,MATCH(B21,'Таблица 1'!B33:B34,0),MATCH(A1,'Таблица 1'!A1:N1,0)) -> 0
B22: ∑ Iрпв = | C22: =SUM(C9:C21) -> 20

Sheet Определение Iрпв по табл.1(2) (hidden)
A1: Объекты общественного питания
A3: Индивидуальный предприниматель Забелова Татьяна Ильинична
A5: Расположен по адресу: г. Мценск, ул. Гагарина, д. 72 а
A7: Определение индикаторов риска Iрпв
A8: Индикаторы риска причинения вреда (ущерба) | B8: Показатель (критерий оценки) | C8: Значение показателя Iрпв
A9: 1. Степень огнестойкости | B9: I, II | C9: =INDEX('Таблица 1'!A2:N4,MATCH(B9,'Таблица 1'!B2:B4,0),MATCH(A1,'Таблица 1'!A1:N1,0)) -> 0
A10: 2. Высота здания, сооружения | B10: до 28 м | C10: =INDEX('Таблица 1'!A5:N7,MATCH(B10,'Таблица 1'!B5:B7,0),MATCH(A1,'Таблица 1'!A1:N1,0)) -> 0
A11: 3. Наличие открытых лестниц и (или) многосветных пространств | B11: Нет | C11: =INDEX('Таблица 1'!A8:N9,MATCH(B11,'Таблица 1'!B8:B9,0),MATCH(A1,'Таблица 1'!A1:N1,0)) -> 0
A12: 4. Количество людей | B12: До 50 | C12: =INDEX('Таблица 1'!A10:N15,MATCH(B12,'Таблица 1'!B10:B15,0),MATCH(A1,'Таблица 1'!A1:N1,0)) -> 0
A13: 5. Системы противопожарной защиты (автоматические установки пожаротушения и пожарной сигнализации, система оповещения людей о пожаре и управления эвакуацией людей, система противодымной вентиляции) смонтированы более 10 лет назад и не подвергались капитальному ремонту | B13: Нет или сведения отсутствуют | C13: =INDEX('Таблица 1'!A20:N21,MATCH(B13,'Таблица 1'!B20:B21,0),MATCH(A1,'Таблица 1'!A1:N1,0)) -> 0
A14: 6. Наличие на объекте пожарной охраны, обеспеченной пожарно-техническим вооружением | B14: Нет | C14: =INDEX('Таблица 1'!A22:N23,MATCH(B14,'Таблица 1'!B22:B23,0),MATCH(A1,'Таблица 1'!A1:N1,0)) -> 0
A15: 7. Привлечение к охране организации, специально учрежденной для оказания охранных услуг, зарегистрированной в установленном законом порядке и имеющей лицензию на осуществление частной охранной деятельности | B15: Не круглосуточно | C15: =INDEX('Таблица 1'!A24:N26,MATCH(B15,'Таблица 1'!B24:B26,0),MATCH(A1,'Таблица 1'!A1:N1,0)) -> -3
A16: 8. Электропроводка выполнена более 10 лет назад и не подвергалась капитальному ремонту | B16: Нет или сведения отсутствуют | C16: =INDEX('Таблица 1'!A27:N28,MATCH(B16,'Таблица 1'!B27:B28,0),MATCH(A1,'Таблица 1'!A1:N1,0)) -> 0
A17: 9. Вид электропроводки (за исключением зданий и сооружений V степени огнестойкости) | B17: скрытая | C17: =INDEX('Таблица 1'!A29:N30,MATCH(B17,'Таблица 1'!B29:B30,0),MATCH(A1,'Таблица 1'!A1:N1,0)) -> 0
A18: 10. Наличие электрического отопления (за исключением электрических котлов с контуром отопления) | B18: Нет | C18: =INDEX('Таблица 1'!A31:N32,MATCH(B18,'Таблица 1'!B31:B32,0),MATCH(A1,'Таблица 1'!A1:N1,0)) -> 0
A19: 11. Наличие печного отопления | B19: Нет | C19: =INDEX('Таблица 1'!A33:N34,MATCH(B19,'Таблица 1'!B33:B34,0),MATCH(A1,'Таблица 1'!A1:N1,0)) -> 0
B20: ∑ Iрпв = | C20: =SUM(C9:C19) -> -3

Sheet Определение Iкрд по табл.1 (hidden)
A1: Объекты культурно-досугового назначения
A3: Муниципальное бюджетное учреждение культуры "Социально-культурный центр Спасско-Лутовиновского сельского поселения"
A5: Расположен по адресу: Мценский район, д. Большая Каменка, ул. Молодёжная,1
A7: Определение критериев добросовестности Iкрд
A8: Критерии добросовестности | B8: Показатель (критерий оценки) | C8: Значение показателя Iкрд
A9: 1. Наличие в отношении объекта действующего предписания органа государственного пожарного надзора, содержащего сведения об неустраненных нарушениях установленных требований, предъявляемых к путям эвакуации, зонам безопасности для маломобильных групп населения, автоматическим системам противопожарной защиты (автоматические установки пожаротушения и пожарной сигнализации, система оповещения людей о пожаре и управления эвакуацией людей, система противодымной ветиляции) | B9: Нет | C9: =INDEX('Таблица 3'!A2:N3,MATCH(B9,'Таблица 3'!B2:B3,0),MATCH(A1,'Таблица 3'!A1:N1,0)) -> 0
A10: 2. Наличие в отношении объекта действующего предписания органа государственного пожарного надзора, содержащего сведения об неустраненных нарушениях установленных требований, предъявляемых к обеспечению деятельности пожарных подразделений | B10: Нет | C10: =INDEX('Таблица 3'!A4:N5,MATCH(B10,'Таблица 3'!B4:B5,0),MATCH(A1,'Таблица 3'!A1:N1,0)) -> 0
A11: 3. Наличие в отношении объекта действующего предписания органа государственного пожарного надзора, содержащего сведения об неустраненных нарушениях установленных требований, не вошедшими в пункты 1, 2 | B11: Да | C11: =INDEX('Таблица 3'!A6:N7,MATCH(B11,'Таблица 3'!B6:B7,0),MATCH(A1,'Таблица 3'!A1:N1,0)) -> 2
A12: 4. Наличие в отношении объекта положительного заключения независимой оценки пожарного риска (аудита пожарной безопасности) | B12: Нет | C12: =INDEX('Таблица 3'!A8:N9,MATCH(B12,'Таблица 3'!B8:B9,0),MATCH(A1,'Таблица 3'!A1:N1,0)) -> 0
A13: 5. Наличие на объекте учреждений, осуществляющих экономическую деятельность, не соответствующую функциональному назначению здания | B13: Нет | C13: =INDEX('Таблица 3'!A10:N11,MATCH(B13,'Таблица 3'!B10:B11,0),MATCH(A1,'Таблица 3'!A1:N1,0)) -> 0
A14: 6. Наличие сведений о проведении на объекте перепланировки, реконструкции, капитального ремонта или технического перевооружения | B14: Нет | C14: =INDEX('Таблица 3'!A12:N13,MATCH(B14,'Таблица 3'!B12:B13,0),MATCH(A1,'Таблица 3'!A1:N1,0)) -> 0
A15: 7. Наличие доступа у органа государственного пожарного надзора к системам видеонаблюдения объекта для проведения регулярного дистанционного мониторинга соблюдения требований пожарной безопасности | B15: Нет | C15: =INDEX('Таблица 3'!A14:N15,MATCH(B15,'Таблица 3'!B14:B15,0),MATCH(A1,'Таблица 3'!A1:N1,0)) -> 0
A16: 8. Наличие на объекте круглосуточного мониторинга работоспособности автоматических систем противопожарной защиты (автоматические установки пожаротушения и пожарной сигнализации, система оповещения людей о пожаре и управления эвакуацией людей, система противодымной вентиляции) дежурным персоналом | B16: Нет | C16: =INDEX('Таблица 3'!A16:N17,MATCH(B16,'Таблица 3'!B16:B17,0),MATCH(A1,'Таблица 3'!A1:N1,0)) -> 0
A17: 9. Наличие зарегистрированных случаев пожаров за последние 5 лет (за исключением пожаров причиной которых является умышленное уничтожение или повреждения имущества) | B17: Нет | C17: =INDEX('Таблица 3'!A18:N19,MATCH(B17,'Таблица 3'!B18:B19,0),MATCH(A1,'Таблица 3'!A1:N1,0)) -> 0
A18: 10. Наличие вступившего в законную силу постановления суда о назначении наказания в виде административного приостановления деятельности юридического лица и индивидуального предпринимателя за нарушения требований пожарной безопасности на объекте либо решения суда о приостановлении деятельности в соответствии с частью 2 статьи 1065 Гражданского кодекса Российской Федерации в течение последних 3 лет | B18: Нет | C18: =INDEX('Таблица 3'!A20:N22,MATCH(B18,'Таблица 3'!B20:B22,0),MATCH(A1,'Таблица 3'!A1:N1,0)) -> 0
A19: 11. Наличие информации о вводе в эксплуатацию, либо фактическом функционировании объекта защиты, получившего отрицательное заключение при согласовании специальных технических условий, отражающих специфику обеспечения его пожарной безопасности и содержащих комплекс необходимых инженерно-технических и организационных мероприятий по обеспечению пожарной безопасности | B19: Нет | C19: =INDEX('Таблица 3'!A23:N24,MATCH(B19,'Таблица 3'!B23:B24,0),MATCH(A1,'Таблица 3'!A1:N1,0)) -> 0
A20: 12. Непредставление в установленном порядке декларации пожарной безопасности в отношении объекта защиты, для которого законодательством Российской Федерации о градостроительной деятельности предусмотрено проведение экспертизы проектной документации | B20: Нет | C20: =INDEX('Таблица 3'!A25:N26,MATCH(B20,'Таблица 3'!B25:B26,0),MATCH(A1,'Таблица 3'!A1:N1,0)) -> 0
A21: 13. Непредставление подконтрольным лицом ‎в срок, установленный в предостережении о недопустимости нарушения обязательных требований, уведомления о принятии мер на объекте по обеспечению соблюдения обязательных требований законодательства в области пожарной безопасности | B21: Нет | C21: =INDEX('Таблица 3'!A27:N28,MATCH(B21,'Таблица 3'!B27:B28,0),MATCH(A1,'Таблица 3'!A1:N1,0)) -> 0
A22: 14. Наличие сведений о ненадлежащей работе при пожаре имеющихся автоматических систем противопожарной защиты | B22: Нет | C22: =INDEX('Таблица 3'!A29:N30,MATCH(B22,'Таблица 3'!B29:B30,0),MATCH(A1,'Таблица 3'!A1:N1,0)) -> 0
A23: 15. Наличие сведений о приостановлении действия лицензии юридического лица, индивидуального предпринимателя на осуществление деятельности по техническому обслуживанию и ремонту средств обеспечения пожарной безопасности вследствие грубых нарушений лицензионных требований | B23: Нет | C23: =INDEX('Таблица 3'!A31:N32,MATCH(B23,'Таблица 3'!B31:B32,0),MATCH(A1,'Таблица 3'!A1:N1,0)) -> 0
B24: ∑ Iкрд = | C24: =SUM(C9:C23) -> 2
A26: Индекс индивидуализации подконтрольного лица | B26: Uинд =∑ Iрпв+∑ Iкрд= | C26: ='Определение Iкрд по табл.1'!C24+'Определение Iрпв по табл.1 '!C22 -> 22
A28: Показатель тяжести потенциальных негативных последствий пожара с учетом индекса индивидуализации подконтрольного лица | B28: Кг.т.инд.=Uинд+Кгт = | C28: =INDEX('Таблица со статистикой'!B3:J18,MATCH(A1,'Таблица со статистикой'!B3:B18,0),8)+C26 -> 22.94891693
A30: Категория риска объекта | C30: =IF(C28>=100,"Чрезвычайно высокий",IF(C28>=45,"Высокий",IF(C28>=20,"Значительный",IF(C28>=9,"Средний",IF(C28>=4,"Умеренный","Низкий"))))) -> Значительный
A32: Семенова Александра Геннадьевна | B32: =TODAY() -> 2021-02-18
A33: Ф.И. О. выполнившего расчет | B33: Дата расчета | C33: Подпись

Sheet Определение Iкрд по табл.1(2) (hidden)
A1: Объекты общественного питания
A3: Индивидуальный предприниматель Забелова Татьяна Ильинична
A5: Расположен по адресу: г. Мценск, ул. Гагарина, д. 72 а
A7: Определение критериев добросовестности Iкрд
A8: Критерии добросовестности | B8: Показатель (критерий оценки) | C8: Значение показателя Iкрд
A9: 1. Наличие в отношении объекта действующего предписания органа государственного пожарного надзора, содержащего сведения об неустраненных нарушениях установленных требований, предъявляемых к путям эвакуации, зонам безопасности для маломобильных групп населения, автоматическим системам противопожарной защиты (автоматические установки пожаротушения и пожарной сигнализации, система оповещения людей о пожаре и управления эвакуацией людей, система противодымной ветиляции) | B9: Нет | C9: =INDEX('Таблица 3'!A2:N3,MATCH(B9,'Таблица 3'!B2:B3,0),MATCH(A1,'Таблица 3'!A1:N1,0)) -> 0
A10: 2. Наличие в отношении объекта действующего предписания органа государственного пожарного надзора, содержащего сведения об неустраненных нарушениях установленных требований, предъявляемых к обеспечению деятельности пожарных подразделений | B10: Нет | C10: =INDEX('Таблица 3'!A4:N5,MATCH(B10,'Таблица 3'!B4:B5,0),MATCH(A1,'Таблица 3'!A1:N1,0)) -> 0
A11: 3. Наличие в отношении объекта действующего предписания органа государственного пожарного надзора, содержащего сведения об неустраненных нарушениях установленных требований, не вошедшими в пункты 1, 2 | B11: Нет | C11: =INDEX('Таблица 3'!A6:N7,MATCH(B11,'Таблица 3'!B6:B7,0),MATCH(A1,'Таблица 3'!A1:N1,0)) -> 0
A12: 4. Наличие в отношении объекта положительного заключения независимой оценки пожарного риска (аудита пожарной безопасности) | B12: Нет | C12: =INDEX('Таблица 3'!A8:N9,MATCH(B12,'Таблица 3'!B8:B9,0),MATCH(A1,'Таблица 3'!A1:N1,0)) -> 0
A13: 5. Наличие на объекте учреждений, осуществляющих экономическую деятельность, не соответствующую функциональному назначению здания | B13: Нет | C13: =INDEX('Таблица 3'!A10:N11,MATCH(B13,'Таблица 3'!B10:B11,0),MATCH(A1,'Таблица 3'!A1:N1,0)) -> 0
A14: 6. Наличие сведений о проведении на объекте перепланировки, реконструкции, капитального ремонта или технического перевооружения | B14: Нет | C14: =INDEX('Таблица 3'!A12:N13,MATCH(B14,'Таблица 3'!B12:B13,0),MATCH(A1,'Таблица 3'!A1:N1,0)) -> 0
A15: 7. Наличие доступа у органа государственного пожарного надзора к системам видеонаблюдения объекта для проведения регулярного дистанционного мониторинга соблюдения требований пожарной безопасности | B15: Нет | C15: =INDEX('Таблица 3'!A14:N15,MATCH(B15,'Таблица 3'!B14:B15,0),MATCH(A1,'Таблица 3'!A1:N1,0)) -> 0
A16: 8. Наличие на объекте круглосуточного мониторинга работоспособности автоматических систем противопожарной защиты (автоматические установки пожаротушения и пожарной сигнализации, система оповещения людей о пожаре и управления эвакуацией людей, система противодымной вентиляции) дежурным персоналом | B16: Нет | C16: =INDEX('Таблица 3'!A16:N17,MATCH(B16,'Таблица 3'!B16:B17,0),MATCH(A1,'Таблица 3'!A1:N1,0)) -> 0
A17: 9. Наличие зарегистрированных случаев пожаров за последние 5 лет (за исключением пожаров причиной которых является умышленное уничтожение или повреждения имущества) | B17: Нет | C17: =INDEX('Таблица 3'!A18:N19,MATCH(B17,'Таблица 3'!B18:B19,0),MATCH(A1,'Таблица 3'!A1:N1,0)) -> 0
A18: 10. Наличие вступившего в законную силу постановления суда о назначении наказания в виде административного приостановления деятельности юридического лица и индивидуального предпринимателя за нарушения требований пожарной безопасности на объекте либо решения суда о приостановлении деятельности в соответствии с частью 2 статьи 1065 Гражданского кодекса Российской Федерации в течение последних 3 лет | B18: Нет | C18: =INDEX('Таблица 3'!A20:N22,MATCH(B18,'Таблица 3'!B20:B22,0),MATCH(A1,'Таблица 3'!A1:N1,0)) -> 0
A19: 11. Наличие информации о вводе в эксплуатацию, либо фактическом функционировании объекта защиты, получившего отрицательное заключение при согласовании специальных технических условий, отражающих специфику обеспечения его пожарной безопасности и содержащих комплекс необходимых инженерно-технических и организационных мероприятий по обеспечению пожарной безопасности | B19: Нет | C19: =INDEX('Таблица 3'!A23:N24,MATCH(B19,'Таблица 3'!B23:B24,0),MATCH(A1,'Таблица 3'!A1:N1,0)) -> 0
A20: 12. Непредставление в установленном порядке декларации пожарной безопасности в отношении объекта защиты, для которого законодательством Российской Федерации о градостроительной деятельности предусмотрено проведение экспертизы проектной документации | B20: Нет | C20: =INDEX('Таблица 3'!A25:N26,MATCH(B20,'Таблица 3'!B25:B26,0),MATCH(A1,'Таблица 3'!A1:N1,0)) -> 0
A21: 13. Непредставление подконтрольным лицом ‎в срок, установленный в предостережении о недопустимости нарушения обязательных требований, уведомления о принятии мер на объекте по обеспечению соблюдения обязательных требований законодательства в области пожарной безопасности | B21: Нет | C21: =INDEX('Таблица 3'!A27:N28,MATCH(B21,'Таблица 3'!B27:B28,0),MATCH(A1,'Таблица 3'!A1:N1,0)) -> 0
A22: 14. Наличие сведений о ненадлежащей работе при пожаре имеющихся автоматических систем противопожарной защиты | B22: Нет | C22: =INDEX('Таблица 3'!A29:N30,MATCH(B22,'Таблица 3'!B29:B30,0),MATCH(A1,'Таблица 3'!A1:N1,0)) -> 0
A23: 15. Наличие сведений о приостановлении действия лицензии юридического лица, индивидуального предпринимателя на осуществление деятельности по техническому обслуживанию и ремонту средств обеспечения пожарной безопасности вследствие грубых нарушений лицензионных требований | B23: Нет | C23: =INDEX('Таблица 3'!A31:N32,MATCH(B23,'Таблица 3'!B31:B32,0),MATCH(A1,'Таблица 3'!A1:N1,0)) -> 0
B24: ∑ Iкрд = | C24: =SUM(C9:C23) -> 0
A26: Индекс индивидуализации подконтрольного лица | B26: Uинд =∑ Iрпв+∑ Iкрд= | C26: ='Определение Iкрд по табл.1(2)'!C24+'Определение Iрпв по табл.1(2)'!C20 -> -3
A28: Показатель тяжести потенциальных негативных последствий пожара с учетом индекса индивидуализации подконтрольного лица | B28: Кг.т.инд.=Uинд+Кгт = | C28: =INDEX('Таблица со статистикой'!B3:J18,MATCH(A1,'Таблица со статистикой'!B3:B18,0),8)+C26 -> 14.02422161
A30: Категория риска объекта | C30: =IF(C28>=100,"Чрезвычайно высокий",IF(C28>=45,"Высокий",IF(C28>=20,"Значительный",IF(C28>=9,"Средний",IF(C28>=4,"Умеренный","Низкий"))))) -> Средний
A32: Семенова Александра Геннадьевна | B32: =TODAY() -> 2021-02-18
A33: Ф.И. О. выполнившего расчет | B33: Дата расчета | C33: Подпись

Sheet Таблица со статистикой (hidden)
A1: № п/п | B1: Тип объекта | C1: Сведен. о кол-ве объектов, ед. | D1: Сведения о пожарах и их последствиях | G1: Вероятность возникновения пожара, [год-1] | H1: Ожид. риск негатив. последствий пожаров, [год-1 чел./ед.] × 10³ | I1: Показатель тяжести последствий (Kгт) | J1: Категория риска
D2: Кол-во пожаров, ед | E2: Погибло людей, чел. | F2: Травми-ровано людей, чел.
A3: 1 | B3: Объекты образования и объекты, на которых осуществляется деятельность детских лагерей | C3: 157350 | D3: 408 | E3: 4 | F3: 16 | G3: =D3/C3 -> 0.002592945663 | H3: =(E3+F3)/C3*1000 -> 0.1271051795 | I3: =H3/1000/'Таблица со статистикой по РФ'!F3 -> 4.079287421 | J3: =IF(I3>=100,"Чрезвычайно высокий",IF(I3>=45,"Высокий",IF(I3>=20,"Значительный",IF(I3>=9,"Средний",IF(I3>=4,"Умеренный","Низкий"))))) -> Умеренный
A4: 2 | B4: Объекты здравоохранения | C4: 56626 | D4: 232 | E4: 3 | F4: 19 | G4: 0.004097057889 | H4: 0.3885141101 | I4: =H4/1000/'Таблица со статистикой по РФ'!F3 -> 12.46889173 | J4: Средний
A5: 3 | B5: Объекты социальной защиты | C5: 6788 | D5: 34 | E5: 3 | F5: 6 | G5: 0.005008839128 | H5: 1.325869181 | I5: =H5/1000/'Таблица со статистикой по РФ'!F3 -> 42.55217208 | J5: Значительный
A6: 4 | B6: Объекты религиозного назначения | C6: 18653 | D6: 64 | E6: 1 | F6: 11 | G6: 0.003431083472 | H6: 0.643328151 | I6: =H6/1000/'Таблица со статистикой по РФ'!F3 -> 20.64684101 | J6: Значительный
A7: 5 | B7: Объекты культурно-досугового назначения | C7: 67643 | D7: 220 | E7: 0 | F7: 2 | G7: 0.003252369055 | H7: 0.02956699141 | I7: =H7/1000/'Таблица со статистикой по РФ'!F3 -> 0.9489169251 | J7: Низкий
A8: 6 | B8: Объекты временного размещения людей, туризма и отдыха | C8: 35660 | D8: 273 | E8: 15 | F8: 41 | G8: 0.007655636568 | H8: 1.570386988 | I8: =H8/1000/'Таблица со статистикой по РФ'!F3 -> 50.39967616 | J8: Высокий
A9: 7 | B9: Объекты торговли | C9: 490944 | D9: 2432 | E9: 3 | F9: 27 | G9: 0.004953721809 | H9: 0.06110676574 | I9: =H9/1000/'Таблица со статистикой по РФ'!F3 -> 1.961147938 | J9: Низкий
A10: 8 | B10: Объекты общественного питания | C10: 71637 | D10: 652 | E10: 5 | F10: 33 | G10: 0.009101441992 | H10: 0.5304521407 | I10: =H10/1000/'Таблица со статистикой по РФ'!F3 -> 17.02422161 | J10: Средний
A11: 9 | B11: Объекты бытового обслуживания и предоставления услуг населению | C11: 95324 | D11: 386 | E11: 1 | F11: 8 | G11: 0.004049347489 | H11: 0.09441483782 | I11: =H11/1000/'Таблица со статистикой по РФ'!F3 -> 3.030130335 | J11: Низкий
A12: 10 | B12: Объекты транспортной инфраструктуры | C12: 4055 | D12: 58 | E12: 0 | F12: 1 | G12: 0.01430332922 | H12: 0.2466091245 | I12: =H12/1000/'Таблица со статистикой по РФ'!F3 -> 7.914622388 | J12: Умеренный
A13: 11 | B13: Объекты административного назначения | C13: 167327 | D13: 777 | E13: 8 | F13: 19 | G13: 0.004643602049 | H13: 0.161360689 | I13: =H13/1000/'Таблица со статистикой по РФ'!F3 -> 5.178676676 | J13: Умеренный
A14: 12 | B14: Объекты жилого назначения (многоквартирные жилые дома) | C14: 48861 | D14: 2871 | E14: 4 | F14: 30 | G14: =D14/C14 -> 0.05875851906 | H14: =(E14+F14)/C14*1000 -> 0.6958514971 | I14: =H14/1000/'Таблица со статистикой по РФ'!F3 -> 22.33251445 | J14: =IF(I14>=100,"Чрезвычайно высокий",IF(I14>=45,"Высокий",IF(I14>=20,"Значительный",IF(I14>=9,"Средний",IF(I14>=4,"Умеренный","Низкий"))))) -> Значительный
A15: 13 | B15: Объекты производственного назначения | C15: 158934 | D15: 2417 | E15: 52 | F15: 78 | G15: 0.01520757044 | H15: 0.8179495891 | I15: =H15/1000/'Таблица со статистикой по РФ'!F3 -> 26.25110544 | J15: Значительный
A16: 14 | B16: Объекты складского назначения | C16: 119877 | D16: 2008 | E16: 23 | F16: 44 | G16: 0.0167505026 | H16: 0.5589062122 | I16: =H16/1000/'Таблица со статистикой по РФ'!F3 -> 17.93742072 | J16: Средний
A17: 15 | B17: Объекты сельскохозяйственного назначения | C17: 50212 | D17: 842 | E17: 16 | F17: 23 | G17: 0.01676889986 | H17: 0.7767067633 | I17: =H17/1000/'Таблица со статистикой по РФ'!F3 -> 24.92746669 | J17: Значительный
A18: 16 | B18: Наружные установки | C18: 21763 | D18: 459 | E18: 6 | F18: 20 | G18: 0.02109084226 | H18: 1.194688232 | I18: =H18/1000/'Таблица со статистикой по РФ'!F3 -> 38.34207776 | J18: Значительный

Sheet Таблица со статистикой по РФ (hidden)
A2: Индивидуальный пожарный риск воздействия критических значений опасных факторов пожара на человека в зданиях и сооружениях - Dдоп | B2: Численность постоянного населения в РФ в период проведения ежегодного мониторинга, чел. - Nнас | C2: Общее количество объектов защиты в РФ в период проведения ежегодного мониторинга - Nоб | D2: Общее количество погибших людей при пожарах на объектах защиты в РФ в период проведения ежегодного мониторинга - Nг | E2: Общее количество травмированных людей при пожарах на объектах защиты в РФ в период проведения ежегодного мониторинга - Nт | F2: Допустимый риск негативных последствий пожаров - Qсдоп
A3: 1e-06 | B3: 146745098 | C3: 9954560 | D3: 8507 | E3: 9474 | F3: =A3*B3*(D3+E3)/(C3*D3) -> 3.11586722e-05

Sheet Iрпв для производств.объектов (hidden)
A1: Объекты складского назначения
A3: Общество с ограниченной ответственностью «Экостройсервис»
A5: Расположен по адресу: Орловская область, г. Мценск, ул. Болховская, полигон ТБО
A7: Определение индикаторов риска Iрпв
A8: Индикаторы риска причинения вреда (ущерба) | B8: Показатель (критерий оценки) | C8: Значение показателя Iрпв
A9: 1. Степень огнестойкости | B9: I, II | C9: =INDEX('Таблица 2'!A2:F4,MATCH(B9,'Таблица 2'!B2:B4,0),MATCH(A1,'Таблица 2'!A1:F1,0)) -> 0
A10: 2. Наличие людей в селитебной зоне | B10: Нет | C10: =INDEX('Таблица 2'!A5:F6,MATCH(B10,'Таблица 2'!B5:B6,0),MATCH(A1,'Таблица 2'!A1:F1,0)) -> 0
A11: 3. Высота здания, сооружения (наружной установки) | B11: до 28м | C11: =INDEX('Таблица 2'!A7:F9,MATCH(B11,'Таблица 2'!B7:B9,0),MATCH(A1,'Таблица 2'!A1:F1,0)) -> 0
A12: 4. Наличие открытых лестниц и (или) многосветных пространств | B12: Нет | C12: =INDEX('Таблица 2'!A10:F11,MATCH(B12,'Таблица 2'!B10:B11,0),MATCH(A1,'Таблица 2'!A1:F1,0)) -> 0
A13: 5. Наличие постоянных рабочих мест | B13: Нет | C13: =INDEX('Таблица 2'!A12:F13,MATCH(B13,'Таблица 2'!B12:B13,0),MATCH(A1,'Таблица 2'!A1:F1,0)) -> 0
A14: 6. Наличие маломобильных групп населения, пожилых людей старше 65 лет на территории | B14: Нет | C14: =INDEX('Таблица 2'!A14:F15,MATCH(B14,'Таблица 2'!B14:B15,0),MATCH(A1,'Таблица 2'!A1:F1,0)) -> 0
A15: 7. Системы противопожарной защиты (автоматические установки пожаротушения и пожарной сигнализации, система оповещения людей о пожаре и управления эвакуацией людей, система противодымной вентиляции) смонтированы более 10 лет назад и не подвергались капитальному ремонту | B15: Нет или сведения отсутствуют | C15: =INDEX('Таблица 2'!A16:F17,MATCH(B15,'Таблица 2'!B16:B17,0),MATCH(A1,'Таблица 2'!A1:F1,0)) -> 0
A16: 8. Наличие на объекте пожарной охраны, обеспеченной пожарно-техническим вооружением | B16: Нет | C16: =INDEX('Таблица 2'!A18:F19,MATCH(B16,'Таблица 2'!B18:B19,0),MATCH(A1,'Таблица 2'!A1:F1,0)) -> 0
A17: 9. Привлечение к охране организации, специально учрежденной для оказания охранных услуг, зарегистрированной в установленном законом порядке и имеющей лицензию на осуществление частной охранной деятельности | B17: Круглосуточно | C17: =INDEX('Таблица 2'!A20:F22,MATCH(B17,'Таблица 2'!B20:B22,0),MATCH(A1,'Таблица 2'!A1:F1,0)) -> -5
A18: 10. Категория здания (наружной установки) если категорируется | B18: В с долей помещений В1-В2 менее 50%, ВН - для наружной установки | C18: =INDEX('Таблица 2'!A23:F28,MATCH(B18,'Таблица 2'!B23:B28,0),MATCH(A1,'Таблица 2'!A1:F1,0)) -> 4
A19: 11. Электропроводка выполнена более 10 лет назад и не подвергалась капитальному ремонту | B19: Да | C19: =INDEX('Таблица 2'!A31:F32,MATCH(B19,'Таблица 2'!B31:B32,0),MATCH(A1,'Таблица 2'!A1:F1,0)) -> 5
A20: 12. Вид электропроводки (за исключением зданий и сооружений V степени огнестойкости) | B20: скрытая | C20: =INDEX('Таблица 2'!A33:F34,MATCH(B20,'Таблица 2'!B33:B34,0),MATCH(A1,'Таблица 2'!A1:F1,0)) -> 0
A21: 13. Электрическое отопление (за исключением электрических котлов с контуром отопления) | B21: нет | C21: =INDEX('Таблица 2'!A35:F36,MATCH(B21,'Таблица 2'!B35:B36,0),MATCH(A1,'Таблица 2'!A1:F1,0)) -> 0
A22: 14. Наличие печного отопления | B22: Нет | C22: =INDEX('Таблица 2'!A37:F38,MATCH(B22,'Таблица 2'!B37:B38,0),MATCH(A1,'Таблица 2'!A1:F1,0)) -> 0
A23: 15. Категория объекта по потенциальной радиационной опасности | B23: Не категорируется | C23: =INDEX('Таблица 2'!A39:F43,MATCH(B23,'Таблица 2'!B39:B43,0),MATCH(A1,'Таблица 2'!A1:F1,0)) -> 0
B24: ∑ Iрпв = | C24: =SUM(C9:C23) -> 4

Sheet Iкрд для производств.объектов (hidden)
A1: Объекты складского назначения
A3: Общество с ограниченной ответственностью «Экостройсервис»
A5: Расположен по адресу: Орловская область, г. Мценск, ул. Болховская, полигон ТБО
A7: Определение критериев добросовестности Iкрд
A8: Критерии добросовестности | B8: Показатель (критерий оценки) | C8: Значение показателя Iкрд
A9: 1. Наличие в отношении объекта (наружной установки) действующего предписания органа государственного пожарного надзора, содержащего сведения об неустраненных нарушениях установленных требований, предъявляемых к путям эвакуации, зонам безопасности для маломобильных групп населения, автоматическим системам противопожарной защиты (автоматические установки пожаротушения и пожарной сигнализации, система оповещения людей о пожаре и управления эвакуацией людей, система противодымной ветиляции) | B9: Нет | C9: =INDEX('Таблица 4'!A2:F3,MATCH(B9,'Таблица 4'!B2:B3,0),MATCH(A1,'Таблица 4'!A1:F1,0)) -> 0
A10: 2. Наличие в отношении объекта (наружной установки) действующего предписания органа государственного пожарного надзора, содержащего сведения об неустраненных нарушениях установленных требований, предъявляемых к обеспечению деятельности пожарных подразделений | B10: Нет | C10: =INDEX('Таблица 4'!A4:F5,MATCH(B10,'Таблица 4'!B4:B5,0),MATCH(A1,'Таблица 4'!A1:F1,0)) -> 0
A11: 3. Наличие в отношении объекта (наружной установки) действующего предписания органа государственного пожарного надзора, содержащего сведения об неустраненных нарушениях установленных требований, не вошедшх в пункты 1, 2 настоящей таблицы | B11: Да | C11: =INDEX('Таблица 4'!A6:F7,MATCH(B11,'Таблица 4'!B6:B7,0),MATCH(A1,'Таблица 4'!A1:F1,0)) -> 2
A12: 4. Наличие в отношении объекта (наружной установки) положительного заключения независимой оценки пожарного риска (аудита пожарной безопасности) | B12: Нет | C12: =INDEX('Таблица 4'!A8:F9,MATCH(B12,'Таблица 4'!B8:B9,0),MATCH(A1,'Таблица 4'!A1:F1,0)) -> 0
A13: 5. Наличие на объекте (на территории) учреждений, осуществляющих экономическую деятельность, не соответствующую функциональному назначению | B13: Нет | C13: =INDEX('Таблица 4'!A10:F11,MATCH(B13,'Таблица 4'!B10:B11,0),MATCH(A1,'Таблица 4'!A1:F1,0)) -> 0
A14: 6. Наличие сведений о проведении на объекте (наружной установке) перепланировки, реконструкции, капитального ремонта или технического перевооружения (реконструкции технологических установок) | B14: Нет | C14: =INDEX('Таблица 4'!A12:F13,MATCH(B14,'Таблица 4'!B12:B13,0),MATCH(A1,'Таблица 4'!A1:F1,0)) -> 0
A15: 7. Наличие доступа у органа государственного пожарного надзора к системам видеонаблюдения объекта (наружной установки) для проведения регулярного дистанционного мониторинга соблюдения требований пожарной безопасности | B15: Нет | C15: =INDEX('Таблица 4'!A14:F15,MATCH(B15,'Таблица 4'!B14:B15,0),MATCH(A1,'Таблица 4'!A1:F1,0)) -> 0
A16: 8. Наличие круглосуточного мониторинга работоспособности автоматических систем противопожарной защиты (автоматические установки пожаротушения и пожарной сигнализации, система оповещения людей о пожаре и управления эвакуацией людей, система противодымной вентиляции) дежурным персоналом | B16: Нет | C16: =INDEX('Таблица 4'!A16:F17,MATCH(B16,'Таблица 4'!B16:B17,0),MATCH(A1,'Таблица 4'!A1:F1,0)) -> 0
A17: 9. Наличие зарегистрированных случаев пожаров на объекте (наружной установке) за последние 5 лет (за исключением пожаров причиной которых является умышленное уничтожение или повреждения имущества) | B17: Нет | C17: =INDEX('Таблица 4'!A18:F19,MATCH(B17,'Таблица 4'!B18:B19,0),MATCH(A1,'Таблица 4'!A1:F1,0)) -> 0
A18: 10. Наличие вступившего в законную силу постановления суда о назначении наказания в виде административного приостановления деятельности юридического лица и индивидуального предпринимателя за нарушения требований пожарной безопасности на объекте (наружной установке) либо решения суда о приостановлении деятельности в соответствии с частью 2 статьи 1065 Гражданского кодекса Российской Федерации в течение последних 3 лет | B18: Нет | C18: =INDEX('Таблица 4'!A20:F21,MATCH(B18,'Таблица 4'!B20:B21,0),MATCH(A1,'Таблица 4'!A1:F1,0)) -> 0
A19: 11. Наличие информации о вводе в эксплуатацию, либо фактическом функционировании объекта (наружной установки), получивших отрицательное заключение при согласовании специальных технических условий, отражающих специфику обеспечения его пожарной безопасности и содержащих комплекс необходимых инженерно-технических и организационных мероприятий по обеспечению пожарной безопасности | B19: Нет | C19: =INDEX('Таблица 4'!A22:F23,MATCH(B19,'Таблица 4'!B22:B23,0),MATCH(A1,'Таблица 4'!A1:F1,0)) -> 0
A20: 12. Непредставление в установленном порядке декларации пожарной безопасности в отношении объекта (наружной установки) для которых законодательством Российской Федерации о градостроительной деятельности предусмотрено проведение экспертизы проектной документации | B20: Нет | C20: =INDEX('Таблица 4'!A24:F25,MATCH(B20,'Таблица 4'!B24:B25,0),MATCH(A1,'Таблица 4'!A1:F1,0)) -> 0
A21: 13. Непредставление подконтрольным лицом ‎в срок, установленный в предостережении о недопустимости нарушения обязательных требований, уведомления о принятии мер на объекте по обеспечению соблюдения обязательных требований законодательства в области пожарной безопасности на объекте (наружной установке) | B21: Нет | C21: =INDEX('Таблица 4'!A26:F27,MATCH(B21,'Таблица 4'!B26:B27,0),MATCH(A1,'Таблица 4'!A1:F1,0)) -> 0
A22: 14. Наличие сведений о ненадлежащей работе при пожаре на объекте (наружной установке) имеющихся систем противопожарной защиты | B22: Нет | C22: =INDEX('Таблица 4'!A28:F29,MATCH(B22,'Таблица 4'!B28:B29,0),MATCH(A1,'Таблица 4'!A1:F1,0)) -> 0
A23: 15. Наличие сведений о приостановлении действия лицензии юридического лица, индивидуального предпринимателя на осуществление деятельности по техническому обслуживанию и ремонту средств обеспечения пожарной безопасности вследствие грубых нарушений лицензионных требований на объекте (наружной установке) | B23: Нет | C23: =INDEX('Таблица 4'!A30:F31,MATCH(B23,'Таблица 4'!B30:B31,0),MATCH(A1,'Таблица 4'!A1:F1,0)) -> 0
B24: ∑ Iкрд = | C24: =SUM(C9:C23) -> 2
A26: Индекс индивидуализации подконтрольного лица | B26: Uинд =∑ Iрпв+∑ Iкрд= | C26: =C24+'Iрпв для производств.объектов'!C24 -> 6
A28: Показатель тяжести потенциальных негативных последствий пожара с учетом индекса индивидуализации подконтрольного лица | B28: Кг.т.инд.=Uинд+Кгт = | C28: =INDEX('Таблица со статистикой'!B3:J18,MATCH(A1,'Таблица со статистикой'!B3:B18,0),8)+C26 -> 23.93742072
A30: Категория риска объекта | C30: =IF(C28>=100,"Чрезвычайно высокий",IF(C28>=45,"Высокий",IF(C28>=20,"Значительный",IF(C28>=9,"Средний",IF(C28>=4,"Умеренный","Низкий"))))) -> Значительный
A32: Семенова Александра Геннадьевна | B32: =TODAY() -> 2021-02-18
A33: Ф.И. О. выполнившего расчет | B33: Дата расчета | C33: Подпись
